bitfinex/quotes_SOLUSD_20250929
["timestamp","ask_amount","ask_price","bid_price","bid_amount"]
[1759187895730,0.7,213.4,213.35,5.00713381]
[1759187897326,5.40535854,213.44,213.36,0.32]
[1759187897508,3.13231007,213.43,213.37,4.68669447]
[1759187897841,3.13231007,213.42,213.38,33.2]
[1759187898013,0.72,213.44,213.38,33.2]
[1759187898213,3.13275601,213.43,213.38,33.2]
[1759187898408,3.13275601,213.42,213.38,32.88]
[1759187898626,0.72,213.45,213.39,0.32]
[1759187898823,3.13276144,213.44,213.39,0.32]
[1759187899034,3.13276144,213.43,213.39,0.32]
[1759187899333,0.72,213.44,213.39,0.32]
[1759187899334,3.13276144,213.42,213.39,0.32]
[1759187899538,0.72,213.44,213.39,0.32]
[1759187899743,3.13290333,213.43,213.4,4.68603561]
[1759187900037,3.13290333,213.42,213.4,4.68603561]
[1759187900337,0.72,213.44,213.4,4.68603561]
[1759187900514,3.13304453,213.43,213.4,4.68603561]
[1759187900711,3.13304453,213.42,213.4,4.68603561]
[1759187900950,0.72,213.43,213.4,4.68603561]
[1759187901115,3.13304346,213.42,213.4,4.68603561]
[1759187901440,0.68,213.45,213.4,4.68603561]
[1759187901637,3.13319826,213.44,213.39,4.68625521]
[1759187901939,3.13319826,213.43,213.39,5.00625521]
[1759187902237,0.68,213.43,213.39,4.68625521]
[1759187902812,0.68,213.45,213.39,5.00625521]
[1759187903011,3.13347774,213.44,213.39,5.00625521]
[1759187903240,3.13347774,213.43,213.39,5.00625521]
[1759187903542,0.68,213.43,213.39,4.68625521]
[1759187904232,3.81364768,213.42,213.39,4.68625521]
[1759187904433,0.68,213.41,213.38,32.88]
[1759187906718,0.68,213.4,213.38,32.88]
[1759187906919,0.68,213.4,213.38,37.56647411]
[1759187907414,3.13321562,213.42,213.38,37.56647411]
[1759187907614,0.68,213.43,213.38,37.88647411]
[1759187907814,3.13321948,213.42,213.38,37.88647411]
[1759187908034,4.68518504,213.44,213.38,37.56647411]
[1759187908224,3.81315085,213.43,213.38,37.88647411]
[1759187908443,3.13315085,213.42,213.38,37.56647411]
[1759187908631,0.68,213.43,213.38,37.56647411]
[1759187908933,3.81314935,213.42,213.38,37.56647411]
[1759187909138,0.68,213.42,213.38,37.56647411]
[1759187910338,0.68,213.42,213.39,32.88]
[1759187911134,0.68,213.42,213.38,4.68647411]
[1759187911315,0.68,213.42,213.39,37.56618643]
[1759187911634,0.68,213.46,213.4,0.32]
[1759187911828,3.13357534,213.45,213.4,0.32]
[1759187912034,3.13357534,213.44,213.4,0.32]
[1759187912227,0.68,213.46,213.4,0.32]
[1759187912228,3.13357534,213.43,213.4,0.32]
[1759187912435,0.68,213.46,213.39,49.28182446]
[1759187912745,3.13361246,213.45,213.41,0.32]
[1759187912942,3.13361246,213.44,213.42,32.88]
[1759187913143,0.68,213.47,213.42,32.88]
[1759187913441,3.13379794,213.46,213.43,4.68537693]
[1759187913641,3.13379794,213.45,213.43,4.68537693]
[1759187913838,3.13379794,213.44,213.43,4.68537693]
[1759187914033,0.68,213.51,213.43,4.68537693]
[1759187914238,3.1331025,213.5,213.43,7.58766981]
[1759187914423,3.1331025,213.49,213.44,0.32]
[1759187914625,0.68,213.51,213.45,33.28]
[1759187914825,3.13333478,213.5,213.45,33.28]
[1759187915127,0.68,213.49,213.45,32.96]
[1759187915333,0.68,213.49,213.46,4.68471844]
[1759187915534,3.8120958,213.51,213.46,4.68471844]
[1759187915748,3.8120958,213.5,213.46,4.68471844]
[1759187915981,3.1320958,213.51,213.46,4.68471844]
[1759187916257,0.68,213.49,213.46,4.68471844]
[1759187916747,0.68,213.48,213.45,32.96]
[1759187917058,3.1320958,213.49,213.45,37.64493263]
[1759187917367,0.68,213.49,213.45,37.64493263]
[1759187917846,0.68,213.48,213.45,37.64493263]
[1759187918348,3.1320958,213.5,213.45,37.64493263]
[1759187918729,0.68,213.49,213.45,37.64493263]
[1759187919947,3.1320958,213.5,213.45,37.64493263]
[1759187920144,0.68,213.5,213.45,37.96493263]
[1759187921846,0.68,213.49,213.45,37.64493263]
[1759187922735,3.8120958,213.51,213.45,37.96493263]
[1759187923053,3.8120958,213.51,213.47,4.68449899]
[1759187923347,0.68,213.5,213.47,4.68449899]
[1759187924129,0.68,213.5,213.46,4.68471844]
[1759187925432,3.8120958,213.52,213.46,4.68471844]
[1759187925738,131.6,213.53,213.48,2.90229288]
[1759187925928,131.6,213.53,213.49,33.24]
[1759187926348,131.6,213.53,213.5,4.68384074]
[1759187927350,0.68,213.57,213.51,0.32]
[1759187927544,3.12645288,213.56,213.51,0.32]
[1759187927730,3.80645288,213.56,213.51,0.32]
[1759187927929,3.12645288,213.57,213.51,0.32]
[1759187928141,3.80645288,213.57,213.52,32.92]
[1759187928353,0.68,213.56,213.53,4.68318269]
[1759187928755,3.12645288,213.57,213.53,5.00318269]
[1759187928936,3.80645288,213.58,213.53,5.00318269]
[1759187929131,0.68,213.58,213.53,5.00318269]
[1759187929331,0.68,213.57,213.52,37.60335786]
[1759187929534,0.68,213.56,213.53,32.92]
[1759187929833,0.68,213.55,213.53,32.92]
[1759187930639,3.80645288,213.58,213.53,37.60311132]
[1759187930983,0.68,213.57,213.53,37.60311132]
[1759187932846,0.7,213.58,213.53,37.92311132]
[1759187933038,0.7,213.58,213.53,49.63106804]
[1759187933233,3.12645288,213.59,213.53,49.63106804]
[1759187933447,3.12645288,213.59,213.54,3.22229288]
[1759187933762,3.12645288,213.59,213.55,0.32]
[1759187934049,3.12645288,213.59,213.56,32.9]
[1759187934253,3.12645288,213.59,213.56,33.22]
[1759187934842,3.12645288,213.59,213.56,37.58249733]
[1759187935457,3.82645288,213.59,213.56,37.58249733]
[1759187936367,0.7,213.59,213.56,37.58249733]
[1759187936752,131.6,213.6,213.56,37.58249733]
[1759187937056,0.7,213.61,213.56,37.58249733]
[1759187937771,0.7,213.6,213.56,37.58249733]
[1759187940371,0.7,213.61,213.56,37.58249733]
[1759187940547,3.32346624,213.64,213.56,37.58249733]
[1759187940746,0.7,213.63,213.56,37.58249733]
[1759187941058,0.7,213.62,213.56,37.58249733]
[1759187941357,26.0,213.6,213.57,32.88]
[1759187941565,0.7,213.59,213.56,32.88]
[1759187941752,0.7,213.58,213.54,32.88]
[1759187941954,0.7,213.57,213.54,32.88]
[1759187942155,26.0,213.6,213.54,32.88]
[1759187942156,0.7,213.56,213.54,32.88]
[1759187942661,4.68203846,213.59,213.54,37.56294713]
[1759187942972,0.7,213.58,213.54,37.56294713]
[1759187943265,0.7,213.57,213.54,37.56294713]
[1759187943853,0.7,213.57,213.54,32.88]
[1759187944453,0.7,213.57,213.54,37.56283177]
[1759187945663,5.38203846,213.59,213.54,37.56283177]
[1759187945864,0.7,213.58,213.54,37.56283177]
[1759187947268,0.7,213.57,213.54,37.56283177]
[1759187953494,0.7,213.57,213.54,32.88]
[1759187954278,5.38203846,213.59,213.54,37.56291337]
[1759187954472,0.69,213.58,213.54,37.56291337]
[1759187954850,3.12346624,213.6,213.54,37.56291337]
[1759187955155,3.13190936,213.6,213.55,3.22229288]
[1759187955353,3.13196769,213.63,213.56,0.32]
[1759187955665,3.13196769,213.62,213.58,2.90229288]
[1759187955979,0.2,213.64,213.6,2.90229288]
[1759187956267,0.2,213.64,213.62,2.90229288]
[1759187956661,0.2,213.64,213.63,0.32]
[1759187957550,0.2,213.64,213.63,5.00099049]
[1759187960074,0.2,213.64,213.63,4.68099049]
[1759187960272,0.2,213.64,213.63,5.00099049]
[1759187960768,0.2,213.64,213.62,4.68117691]
[1759187960998,0.2,213.64,213.63,32.86]
[1759187961563,0.2,213.64,213.63,37.54099049]
[1759187961763,0.2,213.64,213.63,37.86099049]
[1759187964771,0.2,213.64,213.63,37.54099049]
[1759187965359,0.2,213.64,213.63,37.86099049]
[1759187965576,0.2,213.64,213.63,5.00099049]
[1759187965755,0.2,213.64,213.63,37.84099049]
[1759187967381,0.2,213.64,213.63,39.69390136]
[1759187967890,0.2,213.65,213.63,39.69390136]
[1759187968089,0.2,213.65,213.64,0.32]
[1759187968387,0.2,213.65,213.64,44.5963654]
[1759187968681,1e-08,213.65,213.64,19.06444253]
[1759187969367,1e-08,213.65,213.64,20.94057114]
[1759187969773,1e-08,213.65,213.64,22.32540488]
[1759187971471,0.2,213.67,213.66,27.85291087]
[1759187971786,0.2,213.67,213.66,60.69291087]
[1759187971994,0.2,213.67,213.66,61.01291087]
[1759187973371,1e-08,213.67,213.66,79.28883811]
[1759187976018,1e-08,213.67,213.66,77.43592724]
[1759187976291,1e-08,213.67,213.66,78.96883811]
[1759187978473,1e-08,213.67,213.66,80.84479074]
[1759187979466,1e-08,213.67,213.66,81.16479074]
[1759187980364,1e-08,213.67,213.66,80.84479074]
[1759187983521,1e-08,213.67,213.66,67.24919673]
[1759187983695,0.70000001,213.67,213.66,39.3732441]
[1759187987198,0.70000001,213.67,213.66,39.3532441]
[1759187992707,0.70000001,213.67,213.66,37.50033323]
[1759187993084,0.70000001,213.67,213.65,4.68051557]
[1759187993414,0.68,213.66,213.65,4.68051557]
[1759187993599,0.68,213.66,213.65,37.50051557]
[1759187994791,0.68,213.66,213.65,32.82]
[1759187996204,0.68,213.66,213.65,37.5005523]
[1759188001916,1e-08,213.67,213.65,37.5005523]
[1759188002304,0.68,213.66,213.65,37.5005523]
[1759188003323,0.68,213.66,213.65,32.82]
[1759188004020,0.68,213.66,213.65,37.50052644]
[1759188004921,1e-08,213.67,213.65,37.50052644]
[1759188005507,1e-08,213.67,213.66,0.32]
[1759188006115,1e-08,213.67,213.66,13.91559401]
[1759188006903,1e-08,213.67,213.66,18.59592724]
[1759188007920,1e-08,213.67,213.66,20.4717919]
[1759188008101,1e-08,213.67,213.66,20.1517919]
[1759188008705,1e-08,213.67,213.66,20.4717919]
[1759188008927,1e-08,213.67,213.66,20.1517919]
[1759188009704,1e-08,213.67,213.66,20.4717919]
[1759188009923,1e-08,213.67,213.66,53.2917919]
[1759188013920,1e-08,213.67,213.66,52.9717919]
[1759188014927,1e-08,213.67,213.66,54.82470277]
[1759188016416,1e-08,213.67,213.66,55.14470277]
[1759188016621,1e-08,213.69,213.68,39.59559401]
[1759188016822,1e-08,213.7,213.69,13.59559401]
[1759188017141,1e-08,213.7,213.69,15.76850488]
[1759188017312,1e-08,213.7,213.69,17.64419361]
[1759188017814,1e-08,213.7,213.69,17.32419361]
[1759188018018,1e-08,213.7,213.69,15.44850488]
[1759188018222,1e-08,213.7,213.69,22.00386977]
[1759188018540,1e-08,213.7,213.69,20.12818104]
[1759188019033,1e-08,213.7,213.69,65.35258703]
[1759188019943,1e-08,213.7,213.69,79.50548439]
[1759188020621,1e-08,213.7,213.69,67.4210784]
[1759188020816,1e-08,213.7,213.69,69.29676713]
[1759188021141,1e-08,213.71,213.7,13.59559401]
[1759188021340,1e-08,213.71,213.7,13.91559401]
[1759188021915,1e-08,213.71,213.7,15.79110684]
[1759188022619,1e-08,213.71,213.7,15.47110684]
[1759188023323,1e-08,213.71,213.7,20.15056402]
[1759188025946,1e-08,213.71,213.7,6.55497001]
[1759188026120,0.72000001,213.71,213.7,63.47945718]
[1759188027723,0.72000001,213.71,213.7,37.47945718]
[1759188030823,1e-08,213.71,213.7,40.3727997]
[1759188031028,1e-08,213.71,213.7,54.28839371]
[1759188031227,1e-08,213.71,213.7,55.84390655]
[1759188039442,1e-08,213.73,213.72,39.59559401]
[1759188039651,1e-08,213.73,213.72,75.28893653]
[1759188039853,1e-08,213.73,213.72,79.9679558]
[1759188040052,1e-08,213.73,213.72,81.84329277]
[1759188040255,0.72000001,213.73,213.72,81.84329277]
[1759188040562,0.72000001,213.73,213.72,79.9679558]
[1759188040855,0.72000001,213.73,213.72,66.37236179]
[1759188042437,0.72000001,213.73,213.72,33.57236179]
[1759188042641,0.72000001,213.73,213.72,66.37236179]
[1759188043747,0.72000001,213.73,213.72,30.67901927]
[1759188044145,0.72000001,213.73,213.72,63.47901927]
[1759188047968,0.72000001,213.73,213.72,30.67901927]
[1759188048173,0.72000001,213.73,213.72,37.47901927]
[1759188050545,0.72000001,213.73,213.72,32.8]
[1759188051090,0.72000001,213.73,213.72,37.47901927]
[1759188052366,0.72000001,213.73,213.72,32.8]
[1759188053851,5.39880036,213.73,213.72,32.8]
[1759188058601,20.23710338,213.73,213.53,53.72]
[1759188058874,20.23710338,213.73,213.52,7.57669126]
[1759188058875,2.89334252,213.65,213.52,7.57669126]
[1759188059054,0.7,213.64,213.53,32.8]
[1759188059254,26.7,213.63,213.53,32.8]
[1759188059460,0.7,213.62,213.53,32.8]
[1759188059658,0.7,213.61,213.52,30.68334874]
[1759188059865,0.7,213.6,213.53,32.8]
[1759188060066,0.7,213.59,213.53,32.8]
[1759188060268,0.7,213.58,213.53,32.8]
[1759188060466,0.7,213.57,213.53,37.48308464]
[1759188061277,0.7,213.56,213.53,37.48308464]
[1759188062468,7.57470549,213.62,213.53,37.48308464]
[1759188062674,0.7,213.61,213.53,37.48308464]
[1759188062879,0.7,213.6,213.53,37.48308464]
[1759188063062,0.7,213.59,213.53,37.48308464]
[1759188063273,0.7,213.58,213.53,37.48308464]
[1759188063587,0.7,213.57,213.53,37.48308464]
[1759188064468,26.0,213.63,213.53,37.48308464]
[1759188064687,0.7,213.57,213.53,37.48308464]
[1759188065996,0.7,213.56,213.49,4.68406014]
[1759188066170,2.89334252,213.61,213.5,58.8]
[1759188066367,0.7,213.57,213.51,0.32]
[1759188066773,0.7,213.57,213.52,32.82]
[1759188066974,0.7,213.56,213.52,32.82]
[1759188067183,0.7,213.55,213.52,32.82]
[1759188067378,0.7,213.54,213.52,32.82]
[1759188067582,26.0,213.59,213.52,32.82]
[1759188067583,0.7,213.53,213.52,32.82]
[1759188068693,5.38318269,213.53,213.52,32.82]
[1759188069390,5.38318269,213.53,213.5,32.84]
[1759188069575,0.7,213.52,213.5,32.84]
[1759188069775,0.7,213.51,213.5,32.84]
[1759188070499,0.7,213.53,213.5,37.52378774]
[1759188071199,0.7,213.52,213.5,32.84]
[1759188071399,0.7,213.51,213.5,32.84]
[1759188071963,0.7,213.53,213.5,32.84]
[1759188072180,0.7,213.52,213.5,32.84]
[1759188072786,0.7,213.52,213.5,4.68382987]
[1759188072997,0.7,213.52,213.51,32.84]
[1759188073196,0.7,213.52,213.5,4.68382987]
[1759188073400,0.7,213.52,213.51,32.84]
[1759188073903,0.7,213.54,213.51,32.84]
[1759188074204,0.7,213.53,213.51,37.52360679]
[1759188074694,0.7,213.53,213.51,32.84]
[1759188074890,0.72,213.53,213.51,32.84]
[1759188075999,0.72,213.52,213.51,32.84]
[1759188077315,131.6,213.56,213.51,32.84]
[1759188077481,0.72,213.54,213.51,32.84]
[1759188077680,0.72,213.53,213.51,32.84]
[1759188081698,132.29,213.56,213.51,37.84360056]
[1759188081894,0.69,213.58,213.54,2.89334252]
[1759188082199,0.69,213.58,213.54,35.71334252]
[1759188083098,0.69,213.58,213.55,4.68274408]
[1759188083896,0.69,213.6,213.55,4.68274408]
[1759188084097,0.69,213.59,213.55,4.68274408]
[1759188085503,0.69,213.58,213.55,4.68274408]
[1759188086607,131.6,213.62,213.55,4.68274408]
[1759188086911,44.27656038,213.64,213.56,0.32]
[1759188086912,0.69,213.63,213.56,0.32]
[1759188087088,5.37103591,213.63,213.57,32.82]
[1759188087403,0.69,213.62,213.58,32.82]
[1759188087594,0.69,213.61,213.58,32.82]
[1759188087989,30.68078135,213.64,213.58,32.82]
[1759188088316,0.69,213.6,213.58,32.82]
[1759188088525,0.69,213.59,213.58,32.82]
[1759188088985,0.69,213.59,213.55,32.82]
[1759188089189,0.69,213.58,213.55,32.82]
[1759188089402,4.68230556,213.57,213.55,32.82]
[1759188089695,0.69,213.56,213.55,32.82]
[1759188090102,0.69,213.56,213.52,32.82]
[1759188090286,0.69,213.55,213.52,32.82]
[1759188090485,0.69,213.54,213.52,32.82]
[1759188091782,0.69,213.56,213.52,37.5032998]
[1759188091987,0.69,213.55,213.52,37.5032998]
[1759188092735,7.79863584,213.59,213.52,37.5032998]
[1759188092898,0.69,213.58,213.52,37.5032998]
[1759188093514,0.69,213.57,213.52,37.5032998]
[1759188093805,0.69,213.56,213.52,37.5032998]
[1759188094202,0.69,213.55,213.52,37.5032998]
[1759188095326,0.69,213.55,213.53,32.82]
[1759188096733,0.69,213.55,213.53,37.50313929]
[1759188098038,7.79870142,213.58,213.5,12.02947455]
[1759188098328,0.69,213.55,213.51,32.82]
[1759188100024,3.11658384,213.57,213.52,4.68340202]
[1759188100225,0.69,213.55,213.52,4.68340202]
[1759188101433,0.69,213.54,213.51,32.82]
[1759188101645,0.69,213.53,213.51,32.82]
[1759188102227,0.69,213.53,213.5,4.68382489]
[1759188102538,0.69,213.56,213.51,32.82]
[1759188102727,3.82810382,213.55,213.51,32.82]
[1759188103033,3.82810382,213.54,213.51,32.82]
[1759188103238,3.13810382,213.53,213.51,32.82]
[1759188103439,0.69,213.54,213.51,32.82]
[1759188103738,3.1424522,213.53,213.51,32.82]
[1759188103942,0.69,213.54,213.51,32.82]
[1759188104242,3.14245176,213.53,213.51,37.50359107]
[1759188104452,3.14245176,213.52,213.51,32.82]
[1759188105740,0.69,213.55,213.51,37.50362137]
[1759188105926,3.14363768,213.54,213.51,37.50362137]
[1759188106127,3.14363768,213.53,213.51,37.50362137]
[1759188106323,0.69,213.55,213.51,37.50362137]
[1759188106528,3.1442987,213.54,213.51,37.50362137]
[1759188106741,3.1442987,213.53,213.51,37.50362137]
[1759188106938,0.69,213.54,213.51,37.50362137]
[1759188107237,3.14624542,213.53,213.51,37.50362137]
[1759188107416,0.69,213.54,213.51,37.50362137]
[1759188107619,3.1466679,213.53,213.51,37.50362137]
[1759188107927,0.69,213.54,213.51,37.50362137]
[1759188108127,3.1466679,213.53,213.51,37.50362137]
[1759188108445,0.69,213.54,213.51,37.50362137]
[1759188108620,3.1470094,213.53,213.51,37.50362137]
[1759188108941,0.69,213.56,213.51,37.50362137]
[1759188109245,3.83701088,213.55,213.51,37.50362137]
[1759188109446,3.14701088,213.54,213.51,37.50362137]
[1759188109644,3.14701088,213.53,213.51,37.50362137]
[1759188109846,0.69,213.55,213.51,37.50362137]
[1759188110142,3.14781064,213.54,213.51,37.50362137]
[1759188110325,3.1485985,213.53,213.51,37.50362137]
[1759188110528,0.69,213.55,213.51,37.50362137]
[1759188110838,3.83859955,213.54,213.51,37.50362137]
[1759188111043,3.14859955,213.53,213.51,37.50362137]
[1759188111247,0.69,213.54,213.51,37.50362137]
[1759188111760,16.38817603,213.57,213.48,0.1]
[1759188111923,4.68340202,213.52,213.48,0.1]
[1759188112118,3.14864142,213.51,213.48,32.92]
[1759188112418,3.84780375,213.5,213.48,0.1]
[1759188112619,42.74339776,213.49,213.48,0.1]
[1759188113042,43.44339776,213.49,213.48,0.1]
[1759188114225,48.1274579,213.49,213.48,0.1]
[1759188121450,39.59559401,213.45,213.44,0.1]
[1759188121649,72.43559401,213.45,213.44,0.1]
[1759188121855,78.13801453,213.45,213.44,0.1]
[1759188122549,43.44339776,213.45,213.44,0.1]
[1759188122727,34.53274167,213.45,213.44,0.1]
[1759188122925,30.68493792,213.45,213.44,0.1]
[1759188123128,131.6,213.48,213.44,0.1]
[1759188123351,131.6,213.48,213.45,0.32]
[1759188123749,131.6,213.48,213.46,0.32]
[1759188123952,131.6,213.48,213.44,4.78514634]
[1759188124251,131.6,213.48,213.45,0.32]
[1759188124652,131.6,213.48,213.46,0.32]
[1759188125225,131.6,213.48,213.46,5.00457922]
[1759188126749,131.6,213.48,213.46,4.68457922]
[1759188126951,131.6,213.48,213.44,5.10502676]
[1759188127166,131.6,213.48,213.44,0.42]
[1759188127555,132.3,213.48,213.44,0.1]
[1759188128662,0.7,213.47,213.44,0.1]
[1759188129040,136.28431891,213.48,213.44,0.1]
[1759188129245,0.7,213.47,213.44,0.1]
[1759188131047,0.7,213.47,213.44,4.78511538]
[1759188131350,131.6,213.48,213.44,4.78511538]
[1759188131955,131.6,213.48,213.45,0.32]
[1759188132660,131.6,213.48,213.44,4.78511538]
[1759188132848,131.6,213.48,213.44,5.10511538]
[1759188133459,0.7,213.55,213.45,0.32]
[1759188133644,0.7,213.54,213.45,0.32]
[1759188134659,0.7,213.54,213.46,16.39651456]
[1759188134864,0.67,213.53,213.46,16.71651456]
[1759188135941,0.67,213.53,213.47,0.32]
[1759188136565,0.67,213.53,213.48,4.68427955]
[1759188137161,4.68299565,213.54,213.48,4.68427955]
[1759188137365,0.67,213.53,213.48,4.68427955]
[1759188137674,0.67,213.54,213.48,5.00427955]
[1759188141361,0.7,213.53,213.48,4.68427955]
[1759188141872,0.7,213.52,213.48,4.68427955]
[1759188142245,0.7,213.54,213.48,5.00427955]
[1759188142461,3.13807914,213.55,213.48,4.68427955]
[1759188142462,0.7,213.53,213.48,4.68427955]
[1759188142856,0.7,213.52,213.47,32.84]
[1759188143048,0.7,213.51,213.46,4.68450201]
[1759188143249,0.7,213.5,213.46,4.68450201]
[1759188143657,0.7,213.49,213.45,32.84]
[1759188143861,0.7,213.48,213.45,37.52490686]
[1759188144072,26.0,213.52,213.45,32.84]
[1759188144376,0.7,213.47,213.45,37.52491754]
[1759188144767,0.7,213.49,213.45,37.52491754]
[1759188145152,0.7,213.48,213.45,4.68491754]
[1759188145461,0.7,213.47,213.45,4.68491754]
[1759188147588,0.7,213.46,213.44,0.1]
[1759188149076,0.7,213.45,213.44,0.1]
[1759188150078,5.3843163,213.48,213.44,0.1]
[1759188150256,0.7,213.47,213.44,0.1]
[1759188150457,4.6843163,213.48,213.44,0.1]
[1759188150458,0.7,213.46,213.44,0.1]
[1759188151196,3.83807914,213.5,213.44,5.10514992]
[1759188151387,0.7,213.49,213.44,0.1]
[1759188152080,5.3840621,213.49,213.44,0.1]
[1759188152279,8.52214124,213.49,213.44,0.1]
[1759188152463,3.13807914,213.48,213.44,0.1]
[1759188152874,17.43367315,213.47,213.44,0.1]
[1759188153067,14.29559401,213.47,213.44,0.1]
[1759188153393,17.43367315,213.47,213.44,0.1]
[1759188153577,14.29559401,213.47,213.44,0.1]
[1759188153779,4.68471844,213.46,213.44,0.1]
[1759188154287,0.7,213.45,213.44,0.1]
[1759188154586,8.52255153,213.48,213.44,0.1]
[1759188154800,0.7,213.47,213.44,0.1]
[1759188155174,0.7,213.46,213.44,0.1]
[1759188155689,3.13807914,213.47,213.44,0.1]
[1759188155898,3.83807914,213.5,213.44,5.10512715]
[1759188156264,3.13807914,213.49,213.44,5.10512715]
[1759188156464,3.13807914,213.49,213.45,0.32]
[1759188156665,3.13807914,213.54,213.45,0.32]
[1759188156911,3.13807914,213.53,213.45,0.32]
[1759188157071,3.13807914,213.52,213.45,0.32]
[1759188157271,3.13807914,213.51,213.45,0.32]
[1759188157595,3.83807914,213.53,213.45,0.32]
[1759188157789,3.13807914,213.52,213.45,0.32]
[1759188158098,3.13807914,213.51,213.46,16.39651456]
[1759188158389,3.13807914,213.52,213.47,33.16]
[1759188158593,3.13807914,213.51,213.47,33.16]
[1759188159278,0.7,213.54,213.47,33.16]
[1759188159478,0.7,213.53,213.47,33.16]
[1759188160074,0.7,213.53,213.48,16.39497844]
[1759188160496,0.7,213.53,213.48,16.71497844]
[1759188160701,0.7,213.53,213.49,32.84]
[1759188160890,0.7,213.52,213.49,32.84]
[1759188161088,0.7,213.51,213.49,32.84]
[1759188163011,0.7,213.51,213.5,32.84]
[1759188164500,0.7,213.51,213.45,4.68476031]
[1759188164694,0.7,213.5,213.46,32.84]
[1759188165002,0.7,213.49,213.46,32.84]
[1759188167786,5.38431121,213.48,213.47,32.84]
[1759188168701,0.7,213.48,213.47,32.84]
[1759188169305,4.68406497,213.49,213.47,32.84]
[1759188169495,0.7,213.48,213.47,32.84]
[1759188170207,5.38438068,213.48,213.44,0.1]
[1759188170506,3.84724582,213.47,213.44,32.94]
[1759188170806,0.7,213.47,213.44,32.94]
[1759188171307,3.84725445,213.47,213.44,32.94]
[1759188172013,3.82725445,213.47,213.44,32.94]
[1759188175313,0.68,213.47,213.44,32.94]
[1759188175699,0.68,213.46,213.44,32.94]
[1759188178107,5.36472119,213.46,213.44,32.94]
[1759188178415,0.68,213.45,213.44,32.94]
[1759188178916,4.68472119,213.46,213.44,32.94]
[1759188179108,5.36472119,213.46,213.44,32.94]
[1759188180301,0.68,213.46,213.44,32.94]
[1759188180714,5.36431946,213.48,213.44,32.94]
[1759188181019,3.82725445,213.47,213.44,32.94]
[1759188183114,8.51177727,213.47,213.44,32.94]
[1759188183413,5.36452282,213.47,213.44,32.94]
[1759188183803,8.51177727,213.47,213.44,32.94]
[1759188184113,5.36452282,213.47,213.44,32.94]
[1759188184501,8.51177727,213.47,213.44,32.94]
[1759188184703,5.36452282,213.47,213.44,32.94]
[1759188185101,7.83177727,213.47,213.44,32.94]
[1759188185301,0.68,213.46,213.44,32.94]
[1759188188101,8.51177727,213.47,213.44,32.94]
[1759188188318,0.68,213.46,213.44,32.94]
[1759188189703,4.68452282,213.47,213.44,32.94]
[1759188190020,8.51177727,213.47,213.44,32.94]
[1759188190228,5.36452282,213.47,213.44,32.94]
[1759188190723,7.83177727,213.47,213.44,32.94]
[1759188190928,0.68,213.46,213.44,32.94]
[1759188192221,5.36476067,213.46,213.44,32.94]
[1759188193137,0.68,213.46,213.44,32.94]
[1759188196028,0.68,213.45,213.44,32.94]
[1759188196415,4.68427955,213.48,213.44,32.94]
[1759188196609,3.82725445,213.47,213.44,32.94]
[1759188196806,0.68,213.46,213.44,32.94]
[1759188197929,0.68,213.45,213.44,0.1]
[1759188198132,0.68,213.45,213.44,32.94]
[1759188203836,3.14725445,213.47,213.44,33.26]
[1759188204029,3.84725445,213.49,213.44,33.26]
[1759188204233,3.84725445,213.48,213.44,33.26]
[1759188204536,0.7,213.48,213.44,32.94]